fUSD/lending_fUSD_20250124
["ID","MTS","AMOUNT","RATE_DAILY","PERIOD"]
[350237739,1737725457998,-2848.9428642,0.00019138,2]
[350237740,1737725458007,-466.2975681,0.00019139,2]
[350237741,1737725458017,-150.0,0.00019143,2]
[350237742,1737725458026,-170.57070841,0.00019151,2]
[350237743,1737725458035,-500.0,0.00019151,2]
[350237744,1737725458044,-766.66,0.00019151,2]
[350237745,1737725458055,-545.87,0.00019151,2]
[350237746,1737725458064,-565.19,0.00019151,2]
[350237747,1737725458074,-500.0,0.00019151,2]
[350237748,1737725458083,-536.47,0.00019151,2]
[350237749,1737725458092,-500.0,0.00019151,2]
[350237750,1737725458103,-500.0,0.00019151,2]
[350237751,1737725458112,-500.0,0.00019151,2]
[350237752,1737725458121,-647.18,0.00019151,2]
[350237753,1737725458131,-742.68,0.00019151,2]
[350237754,1737725458141,-500.0,0.00019151,2]
[350237755,1737725458150,-820.24,0.00019151,2]
[350237756,1737725458161,-500.0,0.00019151,2]
[350237757,1737725458170,-911.986253,0.00019151,2]
[350237758,1737725458179,-500.0,0.00019151,2]
[350237759,1737725458188,-500.0,0.00019151,2]
[350237760,1737725458198,-1262.356468,0.00019151,2]
[350237761,1737725458208,-500.0,0.00019151,2]
[350237762,1737725458217,-1244.06601,0.00019151,2]
[350237763,1737725458226,-500.0,0.00019151,2]
[350237764,1737725458235,-500.0,0.00019151,2]
[350237765,1737725458244,-264.414933,0.00019151,2]
[350237766,1737725458254,-350.477489,0.00019151,2]
[350237767,1737725458264,-1244.06601,0.00019151,2]
[350237768,1737725458274,-264.414933,0.00019151,2]
[350237769,1737725458283,-880.3,0.00019151,2]
[350237770,1737725458293,-350.477489,0.00019151,2]
[350237771,1737725458302,-577.6,0.00019151,2]
[350237772,1737725458312,-857.73,0.00019151,2]
[350237773,1737725458322,-151.0,0.00019151,2]
[350237774,1737725458332,-1025.13,0.00019151,2]
[350237775,1737725458342,-168.131283,0.00019151,2]
[350237776,1737725458351,-168.131283,0.00019151,2]
[350237777,1737725458361,-500.0,0.00019151,2]
[350237778,1737725458370,-500.0,0.00019151,2]
[350237779,1737725458379,-725.16,0.00019151,2]
[350237780,1737725458388,-151.0,0.00019151,2]
[350237781,1737725458399,-500.0,0.00019151,2]
[350237782,1737725458408,-500.0,0.00019151,2]
[350237783,1737725458418,-500.0,0.00019151,2]
[350237784,1737725458428,-151.0,0.00019151,2]
[350237785,1737725458437,-1184.48,0.00019151,2]
[350237786,1737725458446,-1655.375407,0.00019151,2]
[350237787,1737725458456,-151.0,0.00019151,2]
[350237788,1737725458465,-931.660024,0.00019151,2]
[350237789,1737725458474,-151.0,0.00019151,2]
[350237790,1737725458485,-665.05,0.00019151,2]
[350237791,1737725458494,-931.660024,0.00019151,2]
[350237792,1737725458503,-151.0,0.00019151,2]
[350237793,1737725458514,-500.0,0.00019151,2]
[350237794,1737725458523,-681.0,0.00019151,2]
[350237795,1737725458532,-500.0,0.00019151,2]
[350237796,1737725458542,-229.678481,0.00019151,2]
[350237797,1737725458551,-210.24,0.00019151,2]
[350237798,1737725458560,-151.0,0.00019151,2]
[350237799,1737725458569,-229.678481,0.00019151,2]
[350237800,1737725458579,-210.24,0.00019151,2]
[350237801,1737725458587,-784.13,0.00019151,2]
[350237802,1737725458597,-838.83,0.00019151,2]
[350237803,1737725458607,-151.0,0.00019151,2]
[350237804,1737725458617,-674.0,0.00019151,2]
[350237805,1737725458626,-633.27,0.00019151,2]
[350237806,1737725458635,-625.3,0.00019151,2]
[350237807,1737725458644,-710.81,0.00019151,2]
[350237808,1737725458653,-500.0,0.00019151,2]
[350237809,1737725458662,-500.0,0.00019151,2]
[350237810,1737725458671,-1318.82,0.00019151,2]
[350237811,1737725458681,-500.0,0.00019151,2]
[350237812,1737725458690,-592.87,0.00019151,2]
[350237813,1737725458699,-850.7,0.00019151,2]
[350237814,1737725458708,-500.0,0.00019151,2]
[350237815,1737725458717,-1619.61,0.00019151,2]
[350237816,1737725458727,-328.385685,0.00019151,2]
[350237817,1737725458736,-770.28,0.00019151,2]
[350237818,1737725458746,-500.0,0.00019151,2]
[350237819,1737725458755,-197.223548,0.00019151,2]
[350237820,1737725458764,-328.385685,0.00019151,2]
[350237821,1737725458773,-500.0,0.00019151,2]
[350237822,1737725458784,-197.223548,0.00019151,2]
[350237823,1737725458794,-1105.88,0.00019151,2]
[350237824,1737725458803,-2490.43,0.00019151,2]
[350237825,1737725458813,-500.0,0.00019151,2]
[350237826,1737725458821,-2527.44,0.00019151,2]
[350237827,1737725458831,-1221.43,0.00019151,2]
[350237828,1737725458840,-1517.5,0.00019151,2]
[350237829,1737725458851,-663.69,0.00019151,2]
[350237830,1737725458860,-1976.65,0.00019151,2]
[350237831,1737725458870,-683.17,0.00019151,2]
[350237832,1737725458880,-550.63,0.00019151,2]
[350237833,1737725458889,-752.72,0.00019151,2]
[350237834,1737725458898,-425.399491,0.00019151,2]
[350237835,1737725458907,-151.0,0.00019151,2]
[350237836,1737725458916,-151.0,0.00019151,2]
[350237837,1737725458926,-425.399491,0.00019151,2]
[350237838,1737725458935,-10000.0,0.00019151,2]
[350237839,1737725458944,-786.36,0.00019151,2]
[350237840,1737725458953,-865.57,0.00019151,2]
[350237841,1737725458962,-10000.0,0.00019151,2]
[350237842,1737725458972,-1143.26,0.00019151,2]
[350237843,1737725458984,-10000.0,0.00019151,2]
[350237844,1737725458994,-956.09,0.00019151,2]
[350237845,1737725459003,-500.0,0.00019151,2]
[350237846,1737725459012,-4831.08,0.00019151,2]
[350237847,1737725459022,-681.15,0.00019151,2]
[350237848,1737725459031,-636.28,0.00019151,2]
[350237849,1737725459040,-1185.35,0.00019151,2]
[350237850,1737725459049,-985.07,0.00019151,2]
[350237851,1737725459060,-2604.06,0.00019151,2]
[350237852,1737725459070,-2613.69,0.00019151,2]
[350237853,1737725459079,-500.0,0.00019151,2]
[350237854,1737725459087,-236.129118,0.00019151,2]
[350237855,1737725459097,-2125.86,0.00019151,2]
[350237856,1737725459106,-500.0,0.00019151,2]
[350237857,1737725459115,-236.129118,0.00019151,2]
[350237858,1737725459124,-605.94,0.00019151,2]
[350237859,1737725459133,-772.7,0.00019151,2]
[350237860,1737725459142,-2823.65,0.00019151,2]
[350237861,1737725459151,-1526.12,0.00019151,2]
[350237862,1737725459160,-507.32,0.00019151,2]
[350237863,1737725459170,-595.82,0.00019151,2]
[350237864,1737725459179,-500.0,0.00019151,2]
[350237865,1737725459189,-1206.86,0.00019151,2]
[350237866,1737725459198,-1313.93,0.00019151,2]
[350237867,1737725459207,-1977.6,0.00019151,2]
[350237868,1737725459324,-1322.57,0.00019151,2]
[350237869,1737725459334,-4584.99,0.00019151,2]
[350237870,1737725459344,-500.0,0.00019151,2]
[350237871,1737725459355,-4043.11,0.00019151,2]
[350237872,1737725459364,-1158.59,0.00019151,2]
[350237873,1737725459373,-930.11,0.00019151,2]
[350237874,1737725459382,-1705.72,0.00019151,2]
[350237875,1737725459391,-500.0,0.00019151,2]
[350237876,1737725459402,-1200.9,0.00019151,2]
[350237877,1737725459412,-2753.35,0.00019151,2]
[350237878,1737725459422,-2285.18,0.00019151,2]
[350237879,1737725459431,-500.0,0.00019151,2]
[350237880,1737725459440,-620.26,0.00019151,2]
[350237881,1737725459450,-753.91,0.00019151,2]
[350237882,1737725459460,-729.86,0.00019151,2]
[350237883,1737725459470,-3297.1,0.00019151,2]
[350237884,1737725459479,-1099.34,0.00019151,2]
[350237885,1737725459488,-579.63,0.00019151,2]
[350237886,1737725459497,-1373.96,0.00019151,2]
[350237887,1737725459507,-2755.94,0.00019151,2]
[350237888,1737725459517,-500.0,0.00019151,2]
[350237889,1737725459528,-813.1,0.00019151,2]
[350237890,1737725459537,-500.0,0.00019151,2]
[350237891,1737725459547,-1383.9,0.00019151,2]
[350237892,1737725459557,-654.23,0.00019151,2]
[350237893,1737725459567,-536.85,0.00019151,2]
[350237894,1737725459577,-1097.0,0.00019151,2]
[350237895,1737725459587,-1640.92,0.00019151,2]
[350237896,1737725459596,-560.11,0.00019151,2]
[350237897,1737725459605,-857.58,0.00019151,2]
[350237898,1737725459615,-500.0,0.00019151,2]
[350237899,1737725459625,-11329.67,0.00019151,2]
[350237900,1737725459635,-1010.68,0.00019151,2]
[350237901,1737725459645,-4414.0,0.00019151,2]
[350237902,1737725459654,-500.0,0.00019151,2]
[350237903,1737725459665,-1002.87537827,0.00019151,2]
[350237904,1737725460000,-831.91462173,0.00019151,2]
[350237905,1737725460010,-500.0,0.00019151,2]
[350237906,1737725460021,-902.73,0.00019151,2]
[350237907,1737725460031,-161.8644983,0.00019151,2]
[350237908,1737725460041,-3592.66,0.00019151,2]
[350237909,1737725460051,-500.47,0.00019151,2]
[350237910,1737725460061,-1496.2,0.00019151,2]
[350237911,1737725460072,-739.18,0.00019151,2]
[350237912,1737725460081,-577.81,0.00019151,2]
[350237913,1737725460091,-1003.45,0.00019151,2]
[350237914,1737725460100,-128.11842227,0.00019151,2]
[350237915,1737725460374,-371.88157773,0.00019151,2]
[350237916,1737725460384,-555.07,0.00019151,2]
[350237917,1737725460395,-2659.57,0.00019151,2]
[350237918,1737725460404,-500.0,0.00019151,2]
[350237919,1737725460413,-677.47,0.00019151,2]
[350237920,1737725460424,-555.1,0.00019151,2]
[350237921,1737725460434,-469.90106861,0.00019151,2]
[350237922,1737725460453,-901.87,0.00019151,2]
[350237923,1737725461394,158.76,0.00010137,2]
[350237927,1737726324685,157.58,0.00010137,2]
[350238010,1737726548159,-169.75,0.00014195,2]
[350238011,1737726548182,-155.0,0.00014965,2]
[350238012,1737726548203,-183.98,0.00015735,2]
[350238023,1737726631549,-18.57408134,0.00017652,2]
[350238026,1737726631574,-961.35000627,0.00017652,2]
[350238027,1737726631586,-20.07591239,0.00017652,2]
[350238028,1737726631595,-1567.09,0.00017691,2]
[350238029,1737726631603,-250.0,0.00017691,2]
[350238030,1737726631612,-183.98,0.00017999,2]
[350238031,1737726631622,-245.36562789,0.00018284,2]
[350238032,1737726631647,-3.35437211,0.00018284,2]
[350238033,1737726631659,-252.11,0.00018289,2]
[350238034,1737726631668,-249.31,0.00018297,2]
[350238035,1737726631678,-999.99,0.00018297,2]
[350238036,1737726631688,-108.33707625,0.00018297,2]
[350238037,1737726631698,-442.387,0.00018297,2]
[350238066,1737726637487,-3327.91068013,0.00018297,2]
[350238067,1737726637548,-11240.08524362,0.00018297,2]
[350238068,1737726637557,-499.99,0.00018297,2]
[350238069,1737726637567,-9999.99,0.00018297,2]
[350238070,1737726637577,-393.53,0.00018297,2]
[350238071,1737726637586,-150.99,0.00018297,2]
[350238072,1737726637596,-253.41,0.0001831,2]
[350238073,1737726637605,-8495.62,0.0001831,2]
[350238074,1737726637615,-299.99,0.0001831,4]
[350238075,1737726637625,-9999.99,0.0001831,2]
[350238076,1737726637634,-3205.91,0.0001831,2]
[350238077,1737726637643,-4464.7820845,0.00018332,2]
[350238078,1737726637652,-4464.7820845,0.00018334,2]
[350238079,1737726637661,-251.29,0.00018335,2]
[350238080,1737726637670,-4464.7820845,0.00018338,2]
[350238081,1737726637680,-1277.06759788,0.00018339,2]
[350238082,1737726637695,-3187.71448662,0.00018339,2]
[350238083,1737726637704,-253.93,0.00018379,2]
[350238084,1737726637713,-247.72,0.00018379,2]
[350238085,1737726637723,-249.79,0.00018379,2]
[350238086,1737726637732,-247.34,0.00018379,2]
[350238087,1737726637742,-251.71,0.00018379,2]
[350238088,1737726637751,-250.29,0.00018379,2]
[350238089,1737726637761,-251.16,0.00018379,2]
[350238090,1737726637770,-248.6,0.00018379,2]
[350238091,1737726637779,-4464.7820845,0.00018431,2]
[350238092,1737726637950,-253.17,0.00018479,2]
[350238093,1737726637960,-248.05,0.00018479,2]
[350238095,1737726637971,-253.57,0.00018479,2]
[350238096,1737726637980,-249.9,0.00018479,2]
[350238097,1737726637989,-252.93,0.00018479,2]
[350238098,1737726637999,-251.26,0.00018479,2]
[350238099,1737726638008,-252.09,0.00018479,2]
[350238100,1737726638018,-246.67,0.00018479,2]
[350238101,1737726638027,-500.0,0.00018479,2]
[350238102,1737726638037,-500.0,0.00018479,2]
[350238103,1737726638049,-500.0,0.00018479,2]
[350238104,1737726638059,-500.0,0.00018479,2]
[350238105,1737726638069,-692.05,0.00018479,2]
[350238106,1737726638078,-500.0,0.00018479,2]
[350238107,1737726638089,-344.544,0.00018479,2]
[350238108,1737726638098,-500.0,0.00018479,2]
[350238109,1737726638107,-500.0,0.00018479,2]
[350238110,1737726638116,-500.0,0.00018479,2]
[350238111,1737726638126,-500.0,0.00018479,2]
[350238112,1737726638135,-500.0,0.00018479,2]
[350238113,1737726638145,-500.0,0.00018479,2]
[350238114,1737726638154,-500.0,0.00018479,2]
[350238115,1737726638164,-355.39190283,0.00018479,2]
[350238116,1737726638173,-762.34,0.00018479,2]
[350238117,1737726638183,-585.18,0.00018479,2]
[350238118,1737726638193,-500.0,0.00018479,2]
[350238119,1737726638211,-919.53,0.00018479,2]
[350238120,1737726638223,-500.0,0.00018479,2]
[350238121,1737726638232,-500.0,0.00018479,2]
[350238122,1737726638242,-541.58,0.00018479,2]
[350238123,1737726638251,-500.0,0.00018479,2]
[350238124,1737726638261,-500.0,0.00018479,2]
[350238125,1737726638271,-249.79306925,0.00018479,2]
[350238126,1737726638284,-250.20693075,0.00018479,2]
[350238127,1737726638293,-93.70906925,0.00018479,2]
[350238128,1737726638321,-406.29093075,0.00018479,2]
[350238129,1737726638331,-500.0,0.00018479,2]
[350238130,1737726638343,-500.0,0.00018479,2]
[350238131,1737726638353,-500.0,0.00018479,2]
[350238132,1737726638363,-500.0,0.00018479,2]
[350238133,1737726638372,-500.0,0.00018479,2]
[350238134,1737726638382,-500.0,0.00018479,2]
[350238135,1737726638392,-500.0,0.00018479,2]
[350238136,1737726638402,-500.0,0.00018479,2]
[350238137,1737726638411,-500.0,0.00018479,2]
[350238138,1737726638421,-551.95,0.00018479,2]
[350238139,1737726638431,-698.03,0.00018479,2]
[350238140,1737726638441,-500.0,0.00018479,2]
[350238141,1737726638451,-500.0,0.00018479,2]
[350238142,1737726638460,-500.0,0.00018479,2]
[350238143,1737726638470,-812.05,0.00018479,2]
[350238144,1737726638480,-500.0,0.00018479,2]
[350238145,1737726638489,-733.34,0.00018479,2]
[350238146,1737726638498,-500.0,0.00018479,2]
[350238147,1737726638507,-500.0,0.00018479,2]
[350238148,1737726638516,-302.37646422,0.00018479,2]
[350238149,1737726638526,-500.0,0.00018479,2]
[350238150,1737726638535,-500.0,0.00018479,2]
[350238151,1737726638544,-967.06,0.00018479,2]
[350238152,1737726638553,-697.55,0.00018479,2]
[350238153,1737726638562,-636.72,0.00018479,2]
[350238154,1737726638571,-889.21,0.00018479,2]
[350238155,1737726638580,-500.0,0.00018479,2]
[350238156,1737726638589,-808.54,0.00018479,2]
[350238157,1737726638599,-500.0,0.00018479,2]
[350238158,1737726638607,-500.0,0.00018479,2]
[350238159,1737726638617,-500.0,0.00018479,2]
[350238160,1737726638627,-500.0,0.00018479,2]
[350238161,1737726638636,-500.0,0.00018479,2]
[350238162,1737726638646,-500.0,0.00018479,2]
[350238163,1737726638655,-500.0,0.00018479,2]
[350238164,1737726638664,-350.52355997,0.00018479,2]
[350238165,1737726638674,-569.3,0.00018479,2]
[350238166,1737726638684,-500.0,0.00018479,2]
[350238167,1737726638694,-500.0,0.00018479,2]
[350238168,1737726638704,-500.0,0.00018479,2]
[350238169,1737726638713,-500.0,0.00018479,2]
[350238170,1737726638724,-500.0,0.00018479,2]
[350238171,1737726638733,-520.43,0.00018479,2]
[350238172,1737726638742,-500.0,0.00018479,2]
[350238173,1737726638752,-500.0,0.00018479,2]
[350238174,1737726638762,-500.0,0.00018479,2]
[350238175,1737726638772,-500.0,0.00018479,2]
[350238176,1737726638781,-500.0,0.00018479,2]
[350238177,1737726638790,-500.0,0.00018479,2]
[350238178,1737726638800,-500.0,0.00018479,2]
[350238179,1737726638811,-536.31,0.00018479,2]
[350238180,1737726638821,-718.4,0.00018479,2]
[350238181,1737726638830,-500.0,0.00018479,2]
[350238182,1737726638840,-500.0,0.00018479,2]
[350238183,1737726638849,-500.0,0.00018479,2]
[350238184,1737726638859,-500.0,0.00018479,2]
[350238185,1737726638868,-500.0,0.00018479,2]
[350238186,1737726638878,-500.0,0.00018479,2]
[350238187,1737726638888,-900.01,0.00018479,2]
[350238188,1737726638897,-500.0,0.00018479,2]
[350238189,1737726638907,-752.47,0.00018479,2]
[350238190,1737726638917,-556.38,0.00018479,2]
[350238191,1737726638926,-500.0,0.00018479,2]
[350238192,1737726638935,-500.0,0.00018479,2]
[350238193,1737726638945,-220.68000779,0.00018503,2]
[350238194,1737726638955,-241.04907397,0.00018602,2]
[350238195,1737726638964,-1788.48889605,0.00018602,2]
[350238198,1737726639589,-428.18800003,0.00018602,2]
[350238199,1737726639718,-943.02310392,0.00018602,2]
[350238200,1737726639728,-500.0,0.00018602,2]
[350238201,1737726639738,-735.10637,0.00018602,2]
[350238202,1737726639748,-1850.21,0.00018602,2]
[350238203,1737726639758,-454.51469278,0.00018602,2]
[350238228,1737726645592,-520.33,0.00018479,2]
[350238229,1737726645602,-477.41530722,0.00018602,2]
[350238230,1737726645612,-999.365537,0.00018602,2]
[350238231,1737726645621,-500.0,0.00018602,2]
[350238232,1737726645630,-673.47,0.00018602,2]
[350238233,1737726645640,-2000.89,0.00018602,2]
[350238234,1737726645649,-500.0,0.00018602,2]
[350238235,1737726645658,-500.0,0.00018602,2]
[350238236,1737726645668,-500.0,0.00018602,2]
[350238237,1737726645677,-595.9,0.00018602,2]
[350238238,1737726645687,-1201.35,0.00018602,2]
[350238239,1737726645697,-905.08,0.00018602,2]
[350238240,1737726645707,-514.97,0.00018602,2]
[350238241,1737726645717,-779.84,0.00018602,2]
[350238242,1737726645728,-500.0,0.00018602,2]
[350238243,1737726645738,-1492.85,0.00018602,2]
[350238244,1737726645747,-500.0,0.00018602,2]
[350238245,1737726645757,-685.24,0.00018602,2]
[350238246,1737726645767,-2061.55,0.00018602,2]
[350238247,1737726645776,-2069.17,0.00018602,2]
[350238248,1737726645785,-500.0,0.00018602,2]
[350238249,1737726645795,-756.91,0.00018602,2]
[350238250,1737726645803,-955.43,0.00018602,2]
[350238251,1737726645812,-1208.17,0.00018602,2]
[350238252,1737726645822,-938.4,0.00018602,2]
[350238253,1737726645831,-500.0,0.00018602,2]
[350238254,1737726645840,-500.0,0.00018602,2]
[350238255,1737726645850,-1040.19,0.00018602,2]
[350238256,1737726645859,-950.71,0.00018602,2]
[350238257,1737726645868,-611.72,0.00018602,2]
[350238258,1737726645878,-376.03365646,0.00018602,2]
[350238259,1737726645887,-3200.79,0.00018602,2]
[350238260,1737726645896,-577.8,0.00018602,2]
[350238261,1737726645905,-407.53171092,0.00018602,2]
[350238262,1737726645915,-736.33,0.00018602,2]
[350238263,1737726645924,-1087.72,0.00018602,2]
[350238264,1737726645933,-1565.6,0.00018602,2]
[350238265,1737726645942,-1809.1,0.00018602,2]
[350238266,1737726645951,-870.31,0.00018602,2]
[350238267,1737726645961,-2356.52,0.00018602,2]
[350238268,1737726645970,-917.21,0.00018602,2]
[350238269,1737726645980,-1359.61,0.00018602,2]
[350238270,1737726645989,-2179.73,0.00018602,2]
[350238271,1737726645997,-836.04,0.00018602,2]
[350238272,1737726646006,-500.0,0.00018602,2]
[350238273,1737726646016,-517.93,0.00018602,2]
[350238274,1737726646025,-2632.07,0.00018602,2]
[350238275,1737726646035,-500.0,0.00018602,2]
[350238276,1737726646049,-706.97,0.00018602,2]
[350238277,1737726646059,-500.0,0.00018602,2]
[350238278,1737726646069,-1452.54,0.00018602,2]
[350238279,1737726646079,-1095.58,0.00018602,2]
[350238280,1737726646091,-500.0,0.00018602,2]
[350238281,1737726646100,-2980.46,0.00018602,2]
[350238282,1737726646110,-500.0,0.00018602,2]
[350238284,1737726646120,-590.87,0.00018602,2]
[350238285,1737726646129,-1235.72,0.00018602,2]
[350238287,1737726646138,-500.0,0.00018602,2]
[350238288,1737726646147,-643.92,0.00018602,2]
[350238289,1737726646156,-463.64067373,0.00018602,2]
[350238290,1737726646165,-3511.55,0.00018602,2]
[350238291,1737726646174,-500.0,0.00018602,2]
[350238292,1737726646183,-831.97,0.00018602,2]
[350238293,1737726646193,-522.21,0.00018602,2]
[350238294,1737726646202,-500.0,0.00018602,2]
[350238295,1737726646211,-500.0,0.00018602,2]
[350238296,1737726646220,-1208.42,0.00018602,2]
[350238297,1737726646230,-621.18,0.00018602,2]
[350238298,1737726646240,-557.17,0.00018602,2]
[350238299,1737726646249,-500.0,0.00018602,2]
[350238300,1737726646394,-500.0,0.00018602,2]
[350238301,1737726646409,-1941.33,0.00018602,2]
[350238302,1737726646421,-500.0,0.00018603,2]
[350238303,1737726646431,-500.0,0.00018603,2]
[350238304,1737726646440,-500.0,0.00018603,2]
[350238305,1737726646450,-500.0,0.00018603,2]
[350238306,1737726646460,-205.54129343,0.00018603,2]
[350238307,1737726646469,-91772.93420353,0.00018603,2]
[350238308,1737726646479,-500.0,0.00018616,2]
[350238309,1737726646489,-500.0,0.00018616,2]
[350238310,1737726646498,-500.0,0.00018616,2]
[350238311,1737726646508,-692.05,0.00018616,2]
[350238312,1737726646517,-500.0,0.00018616,2]
[350238313,1737726646528,-500.0,0.00018616,2]
[350238314,1737726646537,-500.0,0.00018616,2]
[350238315,1737726646547,-500.0,0.00018616,2]
[350238316,1737726646556,-500.0,0.00018616,2]
[350238317,1737726646566,-500.0,0.00018616,2]
[350238318,1737726646575,-500.0,0.00018616,2]
[350238319,1737726646589,-762.34,0.00018616,2]
[350238320,1737726646603,-585.18,0.00018616,2]
[350238321,1737726646612,-500.0,0.00018616,2]
[350238322,1737726646622,-919.53,0.00018616,2]
[350238323,1737726646631,-500.0,0.00018616,2]
[350238324,1737726646640,-500.0,0.00018616,2]
[350238325,1737726646649,-541.58,0.00018616,2]
[350238326,1737726646658,-500.0,0.00018616,2]
[350238327,1737726646667,-500.0,0.00018616,2]
[350238328,1737726646676,-500.0,0.00018616,2]
[350238329,1737726646685,-500.0,0.00018616,2]
[350238330,1737726646694,-500.0,0.00018616,2]
[350238331,1737726646703,-500.0,0.00018616,2]
[350238332,1737726646712,-500.0,0.00018616,2]
[350238333,1737726646721,-500.0,0.00018616,2]
[350238334,1737726646732,-500.0,0.00018616,2]
[350238335,1737726646741,-500.0,0.00018616,2]
[350238336,1737726646750,-500.0,0.00018616,2]
[350238337,1737726646759,-500.0,0.00018616,2]
[350238338,1737726646768,-500.0,0.00018616,2]
[350238339,1737726646777,-551.95,0.00018616,2]
[350238340,1737726646786,-698.03,0.00018616,2]
[350238341,1737726646795,-500.0,0.00018616,2]
[350238342,1737726646804,-500.0,0.00018616,2]
[350238343,1737726646813,-500.0,0.00018616,2]
[350238344,1737726646822,-812.05,0.00018616,2]
[350238345,1737726646831,-500.0,0.00018616,2]
[350238346,1737726646840,-733.34,0.00018616,2]
[350238347,1737726646849,-500.0,0.00018616,2]
[350238348,1737726646858,-500.0,0.00018616,2]
[350238349,1737726646867,-500.0,0.00018616,2]
[350238350,1737726646876,-500.0,0.00018616,2]
[350238351,1737726646886,-967.06,0.00018616,2]
[350238352,1737726646895,-697.55,0.00018616,2]
[350238353,1737726646904,-636.72,0.00018616,2]
[350238354,1737726646917,-889.21,0.00018616,2]
[350238355,1737726646926,-500.0,0.00018616,2]
[350238356,1737726646936,-808.54,0.00018616,2]
[350238357,1737726646946,-500.0,0.00018616,2]
[350238358,1737726646955,-500.0,0.00018616,2]
[350238359,1737726646965,-500.0,0.00018616,2]
[350238360,1737726646974,-500.0,0.00018616,2]
[350238361,1737726646985,-500.0,0.00018616,2]
[350238362,1737726646995,-500.0,0.00018616,2]
[350238363,1737726647004,-500.0,0.00018616,2]
[350238364,1737726647014,-569.3,0.00018616,2]
[350238365,1737726647024,-500.0,0.00018616,2]
[350238366,1737726647034,-500.0,0.00018616,2]
[350238367,1737726647043,-500.0,0.00018616,2]
[350238368,1737726647053,-500.0,0.00018616,2]
[350238369,1737726647062,-159.80543036,0.00018616,2]
[350238370,1737726647071,-520.43,0.00018616,2]
[350238371,1737726647080,-500.0,0.00018616,2]
[350238372,1737726647090,-500.0,0.00018616,2]
[350238373,1737726647100,-500.0,0.00018616,2]
[350238374,1737726647109,-29.02850695,0.00018616,2]
[350238375,1737726647367,-470.97149305,0.00018616,2]
[350238376,1737726647378,-500.0,0.00018616,2]
[350238377,1737726647387,-99.89830695,0.00018616,2]
[350238378,1737726647412,-400.10169305,0.00018616,2]
[350238379,1737726647422,-500.0,0.00018616,2]
[350238380,1737726647432,-536.31,0.00018616,2]
[350238381,1737726647442,-718.4,0.00018616,2]
[350238382,1737726647451,-500.0,0.00018616,2]
[350238383,1737726647461,-500.0,0.00018616,2]
[350238384,1737726647472,-500.0,0.00018616,2]
[350238385,1737726647482,-500.0,0.00018616,2]
[350238386,1737726647491,-500.0,0.00018616,2]
[350238387,1737726647500,-500.0,0.00018616,2]
[350238388,1737726647510,-357.76437344,0.00018616,2]
[350238407,1737727745153,-550.0,0.00015,2]
[350238408,1737727745176,-208.81,0.00015142,2]
[350238409,1737727745196,-363.52495,0.00015672,2]
[350238410,1737727745216,-2338.76116017,0.00016,2]